bitfinex/quotes_BTCUSD_20250927
["timestamp","ask_amount","ask_price","bid_price","bid_amount"]
[1758952650516,1.40398697,109880.0,109870.0,0.00689642]
[1758952655838,1.40406962,109880.0,109870.0,0.00689642]
[1758952660706,1.40406962,109880.0,109870.0,0.00373642]
[1758952661146,1.40406962,109880.0,109870.0,0.00677642]
[1758952665545,1.40407269,109880.0,109870.0,0.00677642]
[1758952673967,1.41395882,109880.0,109870.0,0.00677642]
[1758952674261,1.41396205,109880.0,109870.0,0.00677642]
[1758952675743,1.41396205,109880.0,109870.0,0.00373642]
[1758952675925,1.41396205,109880.0,109870.0,0.00171642]
[1758952681279,1.39686492,109880.0,109870.0,0.00171642]
[1758952681446,1.41396239,109880.0,109870.0,0.00171642]
[1758952683163,1.21730835,109880.0,109870.0,0.00171642]
[1758952683557,1.21730835,109880.0,109870.0,0.02565642]
[1758952685281,1.21718835,109880.0,109870.0,0.03078642]
[1758952685509,1.23999835,109880.0,109870.0,0.02774642]
[1758952687844,1.23999846,109880.0,109870.0,0.02774642]
[1758952688054,1.30783075,109880.0,109870.0,0.02774642]
[1758952690008,1.29794462,109880.0,109870.0,0.02774642]
[1758952691373,1.29794462,109880.0,109870.0,0.03075642]
[1758952691598,1.29794462,109880.0,109870.0,0.33493773]
[1758952691599,0.67454462,109880.0,109870.0,0.33493773]
[1758952691994,0.95794462,109880.0,109870.0,0.33493773]
[1758952693953,0.67454462,109880.0,109870.0,0.51697104]
[1758952694178,0.95794462,109880.0,109870.0,0.51697104]
[1758952694412,0.65744725,109880.0,109870.0,0.51697104]
[1758952694580,0.51255254,109880.0,109870.0,0.51697104]
[1758952694739,0.79595254,109880.0,109870.0,0.51697104]
[1758952696109,0.51255254,109880.0,109870.0,0.51697104]
[1758952696326,0.79595254,109880.0,109870.0,0.51697104]
[1758952697272,0.49759244,109880.0,109870.0,0.51697104]
[1758952697533,0.47021,109880.0,109870.0,0.51697104]
[1758952697983,0.02281,109880.0,109870.0,0.54434774]
[1758952698561,0.02281,109880.0,109870.0,0.69525543]
[1758952698736,0.02281,109880.0,109870.0,0.72359362]
[1758952699142,0.02281,109880.0,109870.0,0.71425543]
[1758952700098,0.31077702,109890.0,109870.0,0.71425543]
[1758952700276,0.13376174,109890.0,109880.0,0.64111574]
[1758952700435,0.13376174,109890.0,109880.0,0.64309574]
[1758952700646,0.51168384,109900.0,109880.0,0.66722574]
[1758952700889,0.52660574,109900.0,109890.0,0.2280445]
[1758952701316,0.52660574,109900.0,109890.0,0.2521745]
[1758952701544,0.59431634,109900.0,109890.0,0.2521745]
[1758952702097,0.59531634,109900.0,109890.0,0.2521745]
[1758952702992,0.59531634,109900.0,109890.0,0.2541545]
[1758952703511,0.59531634,109900.0,109890.0,0.2571645]
[1758952704421,0.59531634,109900.0,109890.0,0.2611645]
[1758952706122,0.58892124,109900.0,109890.0,0.2611645]
[1758952707596,0.58892124,109900.0,109890.0,0.03312]
[1758952707831,0.58892124,109900.0,109890.0,0.2611645]
[1758952711377,0.58892124,109900.0,109890.0,0.03312]
[1758952711578,0.58892124,109900.0,109890.0,0.2611645]
[1758952712101,0.59530972,109900.0,109890.0,0.03312]
[1758952712308,0.59531004,109900.0,109890.0,0.2611645]
[1758952712515,0.59531004,109900.0,109890.0,0.2581545]
[1758952712713,0.82335454,109900.0,109890.0,0.02813]
[1758952715630,0.59531004,109900.0,109890.0,0.02813]
[1758952715794,0.82335454,109900.0,109890.0,0.02813]
[1758952718236,0.59531004,109900.0,109890.0,0.02813]
[1758952718438,0.6322574,109900.0,109890.0,0.02813]
[1758952718618,0.81426968,109900.0,109890.0,0.02813]
[1758952718835,0.82336886,109900.0,109890.0,0.02813]
[1758952720354,0.8404283,109900.0,109890.0,0.02813]
[1758952728693,0.84044561,109900.0,109890.0,0.02813]
[1758952729745,0.55708561,109900.0,109890.0,0.02813]
[1758952729948,0.84040561,109900.0,109890.0,0.03317]
[1758952731634,0.55708561,109900.0,109890.0,0.03317]
[1758952731807,0.84040561,109900.0,109890.0,0.03317]
[1758952733135,0.8404343,109900.0,109890.0,0.03317]
[1758952736951,0.35594104,109900.0,109890.0,0.03317]
[1758952737163,0.63926104,109900.0,109890.0,0.03317]
[1758952737561,0.63926104,109900.0,109890.0,0.06054547]
[1758952738715,0.63926104,109900.0,109890.0,0.03317]
[1758952740791,0.63072058,109900.0,109890.0,0.03317]
[1758952741013,0.63926647,109900.0,109890.0,0.03317]
[1758952741625,0.71728514,109900.0,109890.0,0.03317]
[1758952744461,0.20592064,109900.0,109890.0,0.03317]
[1758952744613,0.71728514,109900.0,109890.0,0.03317]
[1758952745066,0.48924064,109900.0,109890.0,0.03317]
[1758952745891,0.20592064,109900.0,109890.0,0.03317]
[1758952746119,0.48924064,109900.0,109890.0,0.03317]
[1758952748809,0.49565012,109900.0,109890.0,0.03317]
[1758952749990,0.49565012,109900.0,109890.0,0.05137001]
[1758952750229,0.30641264,109900.0,109890.0,0.05137001]
[1758952750429,0.48842492,109900.0,109890.0,0.27941451]
[1758952750635,0.48842492,109900.0,109890.0,0.2612145]
[1758952750945,0.4975241,109900.0,109890.0,0.2612145]
[1758952751354,0.4975241,109900.0,109890.0,0.03317]
[1758952755689,0.33013468,109900.0,109890.0,0.03317]
[1758952756502,0.39789312,109900.0,109890.0,0.03317]
[1758952757658,0.41543907,109900.0,109890.0,0.03317]
[1758952763912,0.41543907,109900.0,109890.0,0.03015]
[1758952764922,0.41543907,109900.0,109890.0,0.02813]
[1758952766369,0.44107675,109900.0,109890.0,0.02813]
[1758952767734,0.44748619,109900.0,109890.0,0.02813]
[1758952770743,0.44748641,109900.0,109890.0,0.02813]
[1758952772539,0.30846319,109900.0,109890.0,0.02813]
[1758952772744,0.59174319,109900.0,109890.0,0.02813]
[1758952774752,0.59174395,109900.0,109890.0,0.02813]
[1758952776893,0.30846395,109900.0,109890.0,0.02813]
[1758952777099,0.59174395,109900.0,109890.0,0.02813]
[1758952779341,0.58533451,109900.0,109890.0,0.02813]
[1758952779553,0.59174443,109900.0,109890.0,0.02813]
[1758952781359,0.30846443,109900.0,109890.0,0.02813]
[1758952781840,0.59174443,109900.0,109890.0,0.03328]
[1758952782043,0.30846443,109900.0,109890.0,0.03328]
[1758952782246,0.59174443,109900.0,109890.0,0.03328]
[1758952783687,0.59174522,109900.0,109890.0,0.03328]
[1758952786238,0.30846522,109900.0,109890.0,0.03328]
[1758952786446,0.59174522,109900.0,109890.0,0.03328]
[1758952792442,0.59174574,109900.0,109890.0,0.03328]
[1758952797048,0.5239873,109900.0,109890.0,0.03328]
[1758952797734,0.5239873,109900.0,109890.0,0.03025]
[1758952799405,0.55136283,109900.0,109890.0,0.03025]
[1758952800934,0.61856766,109900.0,109890.0,0.03025]
[1758952801366,0.61856766,109900.0,109890.0,0.03328]
[1758952802595,0.61856766,109900.0,109890.0,0.02813]
[1758952807501,0.55136283,109900.0,109890.0,0.02813]
[1758952807742,0.33206731,109900.0,109890.0,0.02813]
[1758952807963,0.52317877,109900.0,109890.0,0.02813]
[1758952810635,0.59060231,109900.0,109890.0,0.02813]
[1758952810846,0.60751109,109900.0,109890.0,0.02813]
[1758952813671,0.60751109,109900.0,109890.0,0.0302]
[1758952813851,0.60751109,109900.0,109890.0,0.03327]
[1758952816897,0.42726474,109900.0,109890.0,0.03327]
[1758952817590,0.42726474,109900.0,109890.0,0.06064552]
[1758952820001,0.42726474,109900.0,109890.0,0.05757552]
[1758952820403,0.45464052,109900.0,109890.0,0.05757552]
[1758952822636,0.68273547,109900.0,109890.0,0.05757552]
[1758952823654,0.68273547,109900.0,109890.0,2.05757552]
[1758952825899,0.39945547,109900.0,109890.0,2.05757552]
[1758952826032,0.68273547,109900.0,109890.0,2.05757552]
[1758952826228,0.68273547,109900.0,109890.0,2.06064552]
[1758952828720,0.45464052,109900.0,109890.0,2.06064552]
[1758952828919,0.47173484,109900.0,109890.0,2.06064552]
[1758952829537,0.69982979,109900.0,109890.0,2.06064552]
[1758952829892,0.70624013,109900.0,109890.0,2.06064552]
[1758952830698,0.63881659,109900.0,109890.0,2.06064552]
[1758952832413,0.4551999,109900.0,109890.0,2.06064552]
[1758952832986,0.64631136,109900.0,109890.0,2.06064552]
[1758952833626,0.64631136,109900.0,109890.0,2.05757552]
[1758952834267,0.64631136,109900.0,109890.0,2.06064552]
[1758952834892,0.65485796,109900.0,109890.0,2.06064552]
[1758952835053,0.72418836,109900.0,109890.0,2.06064552]
[1758952836482,0.75502398,109900.0,109890.0,2.06064552]
[1758952840101,0.83466369,109900.0,109890.0,2.06064552]
[1758952840280,0.60656874,109900.0,109890.0,2.06064552]
[1758952842015,0.32332874,109900.0,109890.0,2.06064552]
[1758952842235,0.60656874,109900.0,109890.0,2.06064552]
[1758952843229,0.32332874,109900.0,109890.0,2.06064552]
[1758952843431,0.60656874,109900.0,109890.0,2.06064552]
[1758952855768,0.60656756,109900.0,109890.0,2.06064552]
[1758952861033,0.60656786,109900.0,109890.0,2.06064552]
[1758952865338,0.94656786,109900.0,109890.0,2.06064552]
[1758952865559,0.60656786,109900.0,109890.0,2.06064552]
[1758952867336,0.60656916,109900.0,109890.0,2.06064552]
[1758952875027,1.06275906,109900.0,109890.0,2.05550552]
[1758952875236,3.42028906,109900.0,109890.0,2.02813]
[1758952875652,3.44766773,109900.0,109890.0,2.02813]
[1758952876082,3.54246773,109900.0,109890.0,2.02813]
[1758952876742,3.57261963,109900.0,109890.0,2.02813]
[1758952879805,3.19457963,109900.0,109890.0,2.02813]
[1758952880002,3.58689246,109900.0,109890.0,2.02813]
[1758952882720,3.43494892,109900.0,109890.0,2.02813]
[1758952883123,3.05690892,109900.0,109890.0,2.02813]
[1758952883330,3.20867158,109900.0,109890.0,2.02813]
[1758952883555,3.39068386,109900.0,109890.0,2.02813]
[1758952883754,3.02170304,109900.0,109890.0,2.02813]
[1758952884022,3.39978304,109900.0,109890.0,2.02813]
[1758952887504,3.30498304,109900.0,109890.0,2.02813]
[1758952887718,3.39978304,109900.0,109890.0,2.02813]
[1758952888740,3.39973596,109900.0,109890.0,2.02813]
[1758952891110,3.02165596,109900.0,109890.0,2.02813]
[1758952891323,3.39977596,109900.0,109890.0,2.02813]
[1758952895356,3.36894034,109900.0,109890.0,2.02813]
[1758952897537,3.36890218,109900.0,109890.0,2.02813]
[1758952898144,3.40679524,109900.0,109890.0,2.02813]
[1758952899370,3.31195524,109900.0,109890.0,2.02813]
[1758952899604,3.40679524,109900.0,109890.0,2.02813]
[1758952900173,3.40679524,109900.0,109890.0,2.03013]
[1758952901894,3.40679979,109900.0,109890.0,2.03013]
[1758952902864,3.37267527,109900.0,109890.0,2.03013]
[1758952903505,3.37267527,109900.0,109890.0,2.02813]
[1758952904110,3.37267527,109900.0,109890.0,2.03013]
[1758952904317,3.37267527,109900.0,109890.0,2.03313]
[1758952905760,3.37267527,109900.0,109890.0,2.02813]
[1758952905937,3.44188265,109900.0,109890.0,2.02813]
[1758952908383,3.40398959,109900.0,109890.0,2.02813]
[1758952908600,3.40398959,109900.0,109890.0,1.61195895]
[1758952908934,3.45398959,109900.0,109890.0,1.18640139]
[1758952909124,3.56637106,109900.0,109890.0,1.02777232]
[1758952909330,3.56637106,109900.0,109890.0,0.94086857]
[1758952910153,3.47765959,109900.0,109890.0,0.3197483]
[1758952910471,3.47765959,109900.0,109890.0,0.26985475]
[1758952910678,0.99955208,109890.0,109880.0,0.003]
[1758952910892,6.43680643,109890.0,109880.0,0.02697]
[1758952911088,6.46047643,109890.0,109880.0,0.02897]
[1758952911515,6.48786117,109890.0,109880.0,0.02897]
[1758952911936,6.48786117,109890.0,109880.0,0.03097]
[1758952912680,6.48786117,109890.0,109880.0,0.02897]
[1758952912884,6.48786117,109890.0,109880.0,0.03297]
[1758952913088,6.48786117,109890.0,109880.0,0.02897]
[1758952913504,6.48986117,109890.0,109880.0,0.02897]
[1758952913909,6.48986117,109890.0,109880.0,0.02997]
[1758952914719,6.20654117,109890.0,109880.0,0.02997]
[1758952914875,6.58470117,109890.0,109880.0,0.02997]
[1758952916319,6.20654117,109890.0,109880.0,0.02997]
[1758952916541,6.58470117,109890.0,109880.0,0.02997]
[1758952918700,6.20654117,109890.0,109880.0,0.02997]
[1758952918881,6.58470117,109890.0,109880.0,0.02997]
[1758952919486,6.55741287,109890.0,109880.0,0.02997]
[1758952919641,6.27405287,109890.0,109880.0,0.02997]
[1758952920231,6.65229287,109890.0,109880.0,0.02997]
[1758952920434,6.27405287,109890.0,109880.0,0.02997]
[1758952920633,6.65229287,109890.0,109880.0,0.02997]
[1758952921228,6.68899045,109890.0,109880.0,0.02997]
[1758952924191,6.31075045,109890.0,109880.0,0.02997]
[1758952924386,6.68895045,109890.0,109880.0,0.02997]
[1758952926234,6.68897867,109890.0,109880.0,0.02997]
[1758952927683,6.31077867,109890.0,109880.0,0.02997]
[1758952927882,6.68893867,109890.0,109880.0,0.02997]
[1758952928111,6.31077867,109890.0,109880.0,0.02997]
[1758952928272,6.70321271,109890.0,109880.0,0.02997]
[1758952934961,6.70321669,109890.0,109880.0,0.02997]
[1758952937969,6.39897033,109890.0,109880.0,0.02997]
[1758952938099,6.70321669,109890.0,109880.0,0.02997]
[1758952938889,6.63570499,109890.0,109880.0,0.02997]
[1758952939318,6.70482981,109890.0,109880.0,0.02997]
[1758952942530,6.62877706,109890.0,109880.0,0.02997]
[1758952944681,6.55965224,109890.0,109880.0,0.02997]
[1758952944887,6.33145863,109890.0,109880.0,0.02997]
[1758952945135,6.55965224,109890.0,109880.0,0.02997]
[1758952946520,6.55967122,109890.0,109880.0,0.02997]
[1758952949192,6.62715558,109890.0,109880.0,0.02997]
[1758952953254,6.39896197,109890.0,109880.0,0.02997]
[1758952953458,6.62715558,109890.0,109880.0,0.02997]
[1758952954486,6.24899558,109890.0,109880.0,0.02997]
[1758952954736,6.62715558,109890.0,109880.0,0.02997]
[1758952960811,6.44724677,109890.0,109880.0,0.02997]
[1758952961014,6.28715558,109890.0,109880.0,0.02997]
[1758952965058,6.62715558,109890.0,109880.0,0.02497]
[1758952965602,6.62715558,109890.0,109880.0,0.02712]
[1758952967166,6.62715558,109890.0,109880.0,0.0303]
[1758952969242,6.61006798,109890.0,109880.0,0.0303]
[1758952969446,6.62715981,109890.0,109880.0,0.0303]
[1758952974118,6.24899981,109890.0,109880.0,0.0303]
[1758952974320,6.62715981,109890.0,109880.0,0.0303]
[1758952975615,6.24899981,109890.0,109880.0,0.0303]
[1758952975783,6.62715981,109890.0,109880.0,0.0303]
[1758952977707,6.24899981,109890.0,109880.0,0.0303]
[1758952977969,6.62715981,109890.0,109880.0,0.0303]
[1758952980279,6.45778392,109890.0,109880.0,0.0303]
[1758952981851,6.07962392,109890.0,109880.0,0.0303]
[1758952982048,3.44421431,109890.0,109880.0,0.25849361]
[1758952982276,3.68715531,109890.0,109880.0,0.25849361]
[1758952982474,3.68715531,109890.0,109880.0,0.0303]
[1758952985183,3.16679031,109890.0,109880.0,0.0303]
[1758952988844,3.16678902,109890.0,109880.0,0.0303]
[1758952989803,3.15221502,109890.0,109880.0,0.0303]
[1758952991441,3.11651602,109890.0,109880.0,0.0303]
[1758952994591,3.37019436,109890.0,109880.0,0.0303]
[1758953002708,3.37020974,109890.0,109880.0,0.0303]
[1758953008822,2.99204974,109890.0,109880.0,0.0303]
[1758953008985,3.37020974,109890.0,109880.0,0.0303]
[1758953011380,3.37021099,109890.0,109880.0,0.0303]
[1758953014270,2.99205099,109890.0,109880.0,0.0303]
[1758953014591,3.21913799,109890.0,109880.0,0.0303]
[1758953017437,2.84097799,109890.0,109880.0,0.0303]
[1758953017647,3.21913799,109890.0,109880.0,0.0303]
[1758953018283,3.12429799,109890.0,109880.0,0.0303]
[1758953018490,3.21913799,109890.0,109880.0,0.0303]
[1758953018695,2.56856099,109890.0,109880.0,0.0303]
[1758953018894,2.45449899,109890.0,109880.0,0.0303]
[1758953024907,2.34004464,109890.0,109880.0,0.0303]
[1758953027050,1.79353064,109890.0,109880.0,0.0303]
[1758953027696,1.41537064,109890.0,109880.0,0.0303]
[1758953027906,1.69869064,109890.0,109880.0,0.0303]
[1758953031130,1.45627264,109890.0,109880.0,0.0303]
[1758953031300,1.70532164,109890.0,109880.0,0.0303]
[1758953040680,1.70530164,109890.0,109880.0,0.0303]
[1758953046284,1.47224672,109890.0,109880.0,0.0303]
[1758953046486,1.6542469,109890.0,109880.0,0.0303]
[1758953048601,1.6542069,109890.0,109880.0,0.0303]
[1758953052388,1.5321079,109890.0,109880.0,0.0303]
[1758953052776,0.7818863,109890.0,109880.0,0.51651765]
[1758953052987,1.0651663,109890.0,109880.0,0.51651765]
[1758953053179,1.0651663,109890.0,109880.0,0.54389957]
[1758953053832,0.15248612,109890.0,109880.0,0.54389957]
[1758953054050,0.41508737,109890.0,109880.0,0.54389957]
[1758953054250,0.13180737,109890.0,109880.0,0.54389957]
[1758953054458,0.41508737,109890.0,109880.0,0.54389957]
[1758953054602,0.41508737,109890.0,109880.0,0.54289957]
[1758953054802,0.60149261,109890.0,109880.0,0.54289957]
[1758953055014,0.60149261,109890.0,109880.0,0.54489957]
[1758953055221,0.41949243,109890.0,109880.0,0.55189957]
[1758953055823,0.60149228,109890.0,109880.0,0.36988283]
[1758953056411,0.60149228,109890.0,109880.0,0.06568192]
[1758953057550,0.53400792,109890.0,109880.0,0.06568192]
[1758953060500,0.36458144,109890.0,109880.0,0.06568192]
[1758953061495,0.4329202,109890.0,109880.0,0.06568192]
[1758953061698,0.4329202,109890.0,109880.0,0.06035192]
[1758953061898,0.36458144,109890.0,109880.0,0.06035192]
[1758953062281,0.39159726,109890.0,109880.0,0.06035192]
[1758953064205,0.21542073,109890.0,109880.0,0.06538192]
[1758953064407,0.49914073,109890.0,109880.0,0.06538192]
[1758953065857,0.31194171,109890.0,109880.0,0.06538192]
[1758953066055,0.49394189,109890.0,109880.0,0.06538192]
[1758953066285,0.5606402,109890.0,109880.0,0.06538192]
[1758953066421,0.5606402,109890.0,109880.0,0.29351142]
[1758953068530,0.2769202,109890.0,109880.0,0.29351142]
[1758953068761,0.2769202,109890.0,109880.0,0.47552816]
[1758953068945,0.5606402,109890.0,109880.0,0.47552816]
[1758953069089,0.5606402,109890.0,109880.0,0.03297]
[1758953069956,0.55943431,109890.0,109880.0,0.03297]
[1758953070948,0.55943431,109890.0,109880.0,0.038]
[1758953071360,0.55943431,109890.0,109880.0,0.2661295]
[1758953071839,0.55951431,109890.0,109880.0,0.2661295]
[1758953072400,0.58512906,109890.0,109880.0,0.2661295]
[1758953072605,0.58512906,109890.0,109880.0,0.44814624]
[1758953073038,0.58512906,109890.0,109880.0,0.2661295]
[1758953076583,0.58512906,109890.0,109880.0,0.03297]
[1758953076816,0.58512906,109890.0,109880.0,0.2610995]
[1758953077491,0.58512906,109890.0,109880.0,0.2630795]
[1758953077696,0.58512906,109890.0,109880.0,0.2661295]
[1758953077912,0.59153383,109890.0,109880.0,0.2661295]
[1758953082372,0.3806304,109890.0,109880.0,0.2661295]
[1758953083297,0.40783368,109890.0,109880.0,0.2661295]
[1758953083987,0.40783368,109890.0,109880.0,0.44814624]
[1758953086273,0.47514716,109890.0,109880.0,0.44814624]
[1758953087788,0.47849683,109890.0,109880.0,0.44814624]
[1758953092272,0.47849683,109890.0,109880.0,0.22001674]
[1758953092424,0.47849683,109890.0,109880.0,0.2661295]
[1758953094564,0.47849683,109890.0,109880.0,0.038]
[1758953094772,0.47849683,109890.0,109880.0,0.2661295]
[1758953099014,0.28292171,109890.0,109880.0,0.2661295]
[1758953099212,0.56648171,109890.0,109880.0,0.2661295]
[1758953101747,0.28292171,109890.0,109880.0,0.2661295]
[1758953102177,0.56644171,109890.0,109880.0,0.2661295]
[1758953104926,0.28292171,109890.0,109880.0,0.2661295]
[1758953105129,0.56640171,109890.0,109880.0,0.2661295]
[1758953105665,0.56640171,109890.0,109880.0,0.038]
[1758953105924,0.56640171,109890.0,109880.0,0.2661295]
[1758953107568,0.59205254,109890.0,109880.0,0.2661295]
[1758953108201,0.24125906,109890.0,109880.0,0.2661295]
[1758953108402,0.52469906,109890.0,109880.0,0.2661295]
[1758953110215,0.24125906,109890.0,109880.0,0.2661295]
[1758953110415,0.52469906,109890.0,109880.0,0.2661295]
[1758953111162,0.59164343,109890.0,109880.0,0.038]
[1758953111306,0.59164343,109890.0,109880.0,0.2661295]
[1758953116340,0.59164326,109890.0,109880.0,0.2661295]
[1758953116774,0.30820326,109890.0,109880.0,0.2661295]
[1758953116920,0.59164326,109890.0,109880.0,0.2661295]
[1758953117678,0.81977276,109890.0,109880.0,0.038]
[1758953117880,0.53633276,109890.0,109880.0,0.038]
[1758953118023,0.81973276,109890.0,109880.0,0.038]
[1758953118456,0.53633276,109890.0,109880.0,0.038]
[1758953118665,0.81973276,109890.0,109880.0,0.038]
[1758953118848,0.53633276,109890.0,109880.0,0.038]
[1758953119048,0.81973276,109890.0,109880.0,0.038]
[1758953126669,0.59160326,109890.0,109880.0,0.038]
[1758953129246,0.59160261,109890.0,109880.0,0.03495]
[1758953130605,0.5830551,109890.0,109880.0,0.03495]
[1758953130815,0.59160243,109890.0,109880.0,0.03495]
[1758953134234,0.59160222,109890.0,109880.0,0.03495]
[1758953134644,0.59160222,109890.0,109880.0,0.03297]
[1758953135182,0.36559302,109890.0,109880.0,0.03297]
[1758953135349,0.40276912,109890.0,109880.0,0.03297]
[1758953135587,0.5847693,109890.0,109880.0,0.03297]
[1758953137190,0.58476732,109890.0,109880.0,0.03297]
[1758953138133,0.88896969,109890.0,109880.0,0.03297]
[1758953140059,0.58476732,109890.0,109880.0,0.03297]
[1758953142290,0.58476754,109890.0,109880.0,0.03297]
[1758953145204,0.88896991,109890.0,109880.0,0.03297]
[1758953150555,0.89538094,109890.0,109880.0,0.03297]
[1758953151303,0.59117857,109890.0,109880.0,0.03297]
[1758953156213,0.89538094,109890.0,109880.0,0.03297]
[1758953160400,0.89538094,109890.0,109880.0,0.06034957]
[1758953160702,0.61198094,109890.0,109880.0,0.06034957]
[1758953160839,0.89526094,109890.0,109880.0,0.06034957]
[1758953161782,2.82041894,109890.0,109880.0,0.06034957]
[1758953165366,3.16041894,109890.0,109880.0,0.06034957]
[1758953165580,3.16041894,109890.0,109880.0,0.03297]
[1758953165796,3.18780061,109890.0,109880.0,0.03297]
[1758953167563,3.02222041,109890.0,109880.0,0.02597]
[1758953167893,3.02622041,109890.0,109880.0,0.02597]
[1758953168446,3.02622041,109890.0,109880.0,0.02397]
[1758953168874,3.02622041,109890.0,109880.0,0.02497]
[1758953169812,3.04049456,109890.0,109880.0,0.02497]
[1758953170728,3.11043277,109890.0,109880.0,0.02497]
[1758953171293,3.11040313,109890.0,109880.0,0.02497]
[1758953171903,3.14730144,109890.0,109880.0,0.02497]
[1758953175825,3.14728962,109890.0,109880.0,0.02497]
[1758953176174,3.14732962,109890.0,109880.0,0.02497]
[1758953176382,2.91400962,109890.0,109880.0,0.02497]
[1758953176953,3.19732962,109890.0,109880.0,0.02497]
[1758953177163,3.29216962,109890.0,109880.0,0.02497]
[1758953177946,2.91400962,109890.0,109880.0,0.02497]
[1758953178150,3.29216962,109890.0,109880.0,0.02497]
[1758953179688,3.30069757,109890.0,109880.0,0.02497]
[1758953180735,3.18200462,109890.0,109880.0,0.02497]
[1758953180931,3.2691648,109890.0,109880.0,0.02497]
[1758953181162,3.3640048,109890.0,109880.0,0.02497]
[1758953183801,3.35168687,109890.0,109880.0,0.02497]
[1758953186884,3.79908687,109890.0,109880.0,0.02497]
[1758953188655,3.95137116,109890.0,109880.0,0.02497]
[1758953191306,3.57321116,109890.0,109880.0,0.02497]
[1758953191467,3.95141116,109890.0,109880.0,0.02497]
[1758953191668,3.57321116,109890.0,109880.0,0.02497]
[1758953192199,3.95141116,109890.0,109880.0,0.02497]
[1758953192978,3.95141722,109890.0,109880.0,0.02497]
[1758953193973,3.7538184,109890.0,109880.0,0.02497]
[1758953194856,2.91913174,109890.0,109880.0,0.03006]
[1758953195031,3.52557507,109890.0,109880.0,0.03006]
[1758953195230,3.14737507,109890.0,109880.0,0.03006]
[1758953195579,3.52585507,109890.0,109880.0,0.03006]
[1758953196155,3.52587638,109890.0,109880.0,0.03006]
[1758953197712,3.29763305,109890.0,109880.0,0.03006]
[1758953197892,3.52587638,109890.0,109880.0,0.03006]
[1758953200965,3.52579638,109890.0,109880.0,0.03006]
[1758953205980,3.50231111,109890.0,109880.0,0.03006]
[1758953206172,3.52581452,109890.0,109880.0,0.03006]
[1758953208066,3.31001192,109890.0,109880.0,0.03006]
[1758953209168,3.21509192,109890.0,109880.0,0.03006]
[1758953209346,3.30993192,109890.0,109880.0,0.03006]
[1758953210543,3.30994432,109890.0,109880.0,0.03006]
[1758953220525,3.30994432,109890.0,109880.0,0.02497]
[1758953220722,3.53818765,109890.0,109880.0,0.02497]
[1758953226218,3.53806765,109890.0,109880.0,0.02497]
[1758953226418,3.44322819,109890.0,109880.0,0.02497]
[1758953226600,3.53806819,109890.0,109880.0,0.02497]
[1758953230708,3.30982486,109890.0,109880.0,0.02497]
[1758953234802,3.21498486,109890.0,109880.0,0.02497]
[1758953235022,3.3098238,109890.0,109880.0,0.02497]
[1758953236163,2.9316238,109890.0,109880.0,0.02497]
[1758953236563,3.3098238,109890.0,109880.0,0.02497]
[1758953237387,3.2149838,109890.0,109880.0,0.02497]
[1758953237591,3.3098238,109890.0,109880.0,0.02497]
[1758953239525,3.10449594,109890.0,109880.0,0.02497]
[1758953243752,3.1044928,109890.0,109880.0,0.02497]
[1758953245363,2.91559782,109890.0,109880.0,0.02497]
[1758953247525,2.53739782,109890.0,109880.0,0.02497]
[1758953247827,2.91559782,109890.0,109880.0,0.02497]
[1758953248636,2.91559782,109890.0,109880.0,0.02693]
[1758953250655,2.68735449,109890.0,109880.0,0.02693]
[1758953255186,2.68735449,109890.0,109880.0,0.02497]
[1758953269891,2.68735449,109890.0,109880.0,0.02497]
[1758953272966,2.68735449,109890.0,109840.0,0.02738599]
[1758953272967,0.34,109860.0,109840.0,0.02738599]
[1758953273139,0.52208302,109840.0,109830.0,0.000156]
[1758953273350,2.64253018,109840.0,109830.0,0.00020243]
[1758953273582,2.66571018,109840.0,109830.0,0.00218243]
[1758953273730,2.69310628,109840.0,109830.0,0.00218243]
[1758953273935,2.66571018,109840.0,109830.0,0.00218243]
[1758953274130,2.38235018,109840.0,109830.0,0.00218243]
[1758953274340,2.76055018,109840.0,109830.0,0.00218243]
[1758953274795,2.66571018,109840.0,109830.0,0.00218243]
[1758953275001,2.66571018,109840.0,109830.0,0.00627243]
[1758953275213,2.13862418,109840.0,109830.0,0.02912243]
[1758953275658,2.13862418,109840.0,109830.0,0.03312243]
[1758953275870,1.76042418,109840.0,109830.0,0.03312243]
[1758953276069,2.13862418,109840.0,109830.0,0.03312243]
[1758953276273,1.76042418,109840.0,109830.0,0.03312243]
[1758953276613,2.13862418,109840.0,109830.0,0.03312243]
[1758953277362,2.20744538,109840.0,109830.0,0.03312243]
[1758953277995,2.22169225,109840.0,109830.0,0.03312243]
[1758953280353,2.22168742,109840.0,109830.0,0.03312243]
[1758953281322,2.20459678,109840.0,109830.0,0.03312243]
[1758953281525,2.22161125,109840.0,109830.0,0.03312243]
[1758953281727,2.12681125,109840.0,109830.0,0.03312243]
[1758953281939,2.22165125,109840.0,109830.0,0.03312243]
[1758953282920,1.84341125,109840.0,109830.0,0.03312243]
[1758953283093,2.22165125,109840.0,109830.0,0.03312243]
[1758953283568,1.84341125,109840.0,109830.0,0.03312243]
[1758953283769,2.22165125,109840.0,109830.0,0.03312243]
[1758953285560,1.51923467,109840.0,109830.0,0.02405243]
[1758953285966,1.52723467,109840.0,109830.0,0.02405243]
[1758953286696,1.52723467,109840.0,109830.0,0.02305243]
[1758953286895,1.14899467,109840.0,109830.0,0.02305243]
[1758953287217,1.52691467,109840.0,109830.0,0.02305243]
[1758953287797,1.54119535,109840.0,109830.0,0.02305243]
[1758953287997,1.35911233,109840.0,109830.0,0.02305243]
[1758953288203,1.54119535,109840.0,109830.0,0.02305243]
[1758953288520,1.54123535,109840.0,109830.0,0.02305243]
[1758953300141,1.51710878,109840.0,109830.0,0.02305243]
[1758953302845,1.20123535,109840.0,109830.0,0.02305243]
[1758953303043,1.20125945,109840.0,109830.0,0.02305243]
[1758953304253,1.00309972,109840.0,109830.0,0.02305243]
[1758953304785,1.34309972,109840.0,109830.0,0.02305243]
[1758953304992,1.41120973,109840.0,109830.0,0.02305243]
[1758953310718,1.63959401,109840.0,109830.0,0.02305243]
[1758953311162,1.41120973,109840.0,109830.0,0.02305243]
[1758953311369,1.63959401,109840.0,109830.0,0.02305243]
[1758953311677,1.63959917,109840.0,109830.0,0.02305243]
[1758953314107,1.41121489,109840.0,109830.0,0.02305243]
[1758953314318,1.63959917,109840.0,109830.0,0.02305243]
[1758953315114,1.41121489,109840.0,109830.0,0.02305243]
[1758953316148,1.42829842,109840.0,109830.0,0.02305243]
[1758953317068,1.6566827,109840.0,109830.0,0.02305243]
[1758953317906,1.42829842,109840.0,109830.0,0.02520243]
[1758953318118,1.6566827,109840.0,109830.0,0.02520243]
[1758953320515,1.66308951,109840.0,109830.0,0.02520243]